Workbook

Sheet 최종
A1: 2019년도 제1회 지방보조금 추경편성 심의 조서
P2: (단위 : 천원)
A3: 부서명 | B3: 사업 분류 | C3: 공모여부 | E3: 보 조 사 업 명 | F3: 지원근거 | G3: 보 조 사 업 자 | H3: 과목명 | I3: 사 업 내 용 | J3: 19년도 제1회 추경 신청액 | O3: 검토조정액 | Q3: 심의조정액
C4: 구분 | D4: 유형 | J4: 계 | K4: 보조금 | N4: 자부담 | O4: 1차(해당부서) | P4: 2차(예산부서) | Q4: 3차(위원회)
K5: 경정액 | L5: 기정액 | M5: 증감액
A6: 총계 | E6: =SUBTOTAL(103,E7:E92)&"건" -> 74건 | J6: =SUBTOTAL(9,J7:J92) -> 25,542,418 | K6: 21,914,228 | L6: 2,079,590 | M6: 19,834,638 | N6: 3,628,190 | O6: 19,804,638 | P6: 18,562,138 | Q6: 0
A7: 주민복지실 소계 | E7: =SUBTOTAL(103,E8:E15)&"건" -> 8건 | J7: =SUBTOTAL(9,J8:J15) -> 706,608 | K7: =SUBTOTAL(9,K8:K15) -> 704,608 | L7: 394,000 | M7: 310,608 | N7: 2,000 | O7: 310,608 | P7: 308,608 | Q7: =SUBTOTAL(9,Q8:Q12) -> 0
A8: 주민복지실 | B8: 자체 | C8: 공모제외 | D8: 유형4 | E8: 월남전참전자회 활성화 사업 지원 | F8: 예천군 참전유공자 지원에 관한 조례 제4조4항 | G8: 월남전참전자회 예천군지회 | H8: 민간경상사업보조 | I8: 월남전참전자회 여성미망인회 활성화 사업 지원(어려운 회원 위문 및 돌봄, 환경 정비 등 | J8: =K8+N8 -> 7,000 | K8: 5,000 | L8: 0 | M8: =K8-L8 -> 5,000 | N8: 2,000 | O8: =K8 -> 5,000 | P8: 5,000
A9: 주민복지실 | B9: 자체 | C9: 공모대상 | E9: 경로당 신축 | F9: 예천군 경로당 지원에 관한 조례 제5조 | G9: 관내 등록 노인회 | H9: 민간자본사업보조 | I9: 경로당 신축 3개소 개소당 100,000천원 | J9: =K9+N9 -> 300,000 | K9: 300,000 | L9: 120,000 | M9: =K9-L9 -> 180,000 | O9: 180,000 | P9: 180,000
A10: 주민복지실 | B10: 자체 | C10: 공모제외 | D10: 유형5 | E10: 경로당 순회 프로그램 관리지원 | F10: 예천군 경로당 지원에 관한 조례 제5조 | G10: 대한노인회 | H10: 민간단체법정운영비보조 | I10: 경로당 운영 방법 안내 및 프로그램 관리지원(인건비 및 운영비) | J10: 26,000 | K10: 26,000 | L10: 24,000 | M10: 2,000 | O10: 2,000 | P10: 0
A11: 주민복지실 | B11: 자체 | C11: 공모제외 | D11: 유형4 | E11: 어린이집 냉 난방비 지원 | F11: 아동복지증진에 관한 조례 제5조 | G11: 관내 어린이집 41개소 | H11: 사회복지사업보조 | I11: 어린이집 냉난방비 지원 월 10만원, 4개월(1월,2월,7월,8월) | J11: 16,400 | K11: 16,400 | L11: 14,800 | M11: 1,600 | O11: 1,600 | P11: 1,600
A12: 주민복지실 | B12: 자체 | C12: 공모제외 | D12: 유형4 | E12: 지역아동센터 어울림한마당지원 | F12: 예천군 아동복지증진에 관한 조례 제5조 제1항 제5호 | G12: 지역아동센터 연합회 | H12: 사회복지사업보조 | I12: 관내 지역아동센터(6개소)아동 및 교직원들이 모여 체육활동을 통한 어울림 한마당(250명) | J12: 5,000 | K12: 5,000 | L12: 3,000 | M12: 2,000 | O12: 2,000 | P12: 2,000
A13: 주민복지실 | B13: 보조 | C13: 공모제외 | D13: 유형4 | E13: 지역자활센터 운영비 지원 | F13: 국도비내시 | G13: 경북예천지역자활센터 | H13: 사회복지시설법정운영비보조 | I13: 지역자활센터 운영비및 인건비 지원 (센터장 서재호, 종사자4명) | J13: 211,208 | K13: 211,208 | L13: 232,200 | M13: -20,992 | N13: 0 | O13: -20992 | P13: -20992
A14: 주민복지실 | B14: 보조 | C14: 공모대상 | E14: 청년복지 행복도우미 지원 | F14: 국도비내시 | G14: 관내 사회복지시설 | H14: 사회복지사업보조 | I14: 관내 사회복지시설 청년복지 행정도우미 지원 2,300천원 * 6명 * 10월 | J14: =K14+N14 -> 138,000 | K14: 138,000 | L14: 0 | M14: =K14-L14 -> 138,000 | O14: =K14 -> 138,000 | P14: =O14 -> 138,000
A15: 주민복지실 | B15: 보조 | C15: 공모제외 | D15: 유형4 | E15: 다문화가족범죄예방 교육 및 홍보 | F15: 국도비내시 | G15: 예천군다문화가족지원센터 | H15: 사회복지사업보조 | I15: 다문화가족범죄예방 교육 및 홍보 | J15: 3,000 | K15: 3,000 | L15: 0 | M15: 3,000 | O15: =K15 -> 3,000 | P15: 3,000
A16: 총무과 소계 | E16: =SUBTOTAL(103,E17:E19)&"건" -> 3건 | J16: =SUBTOTAL(9,J17:J19) -> 114,726 | K16: =SUBTOTAL(9,K17:K19) -> 100,156 | L16: =SUBTOTAL(9,L17:L19) -> 0 | M16: 100,156 | N16: 14,570 | O16: 100,156 | P16: 100,156 | Q16: =SUBTOTAL(9,Q17:Q18) -> 0
A17: 총무과 | B17: 보조 | C17: 공모제외 | D17: 유형2 | E17: 정보화마을 프로그램관리자 육성지원 사업 | F17: 국도비내시 | G17: 금당실정보화마을 운영위원장 | H17: 민간단체법정운영비보조 | I17: 정보화마을 프로그램관리자 인건비등 20,312천원 * 3인 | J17: =K17+N17 -> 73,506 | K17: 60,936 | L17: 0 | M17: =K17-L17 -> 60,936 | N17: 12,570 | O17: 60,936 | P17: 60,936
A18: 총무과 | B18: 보조 | C18: 공모제외 | D18: 유형4 | E18: 장애유형별 맞춤형 평생교육 지원사업 | F18: 국도비내시 | G18: 예천군장애인생활이동지원센터 예천군수어통역센터, 한국교통장애인협회예천군지회, 경북지체장애인협회예천군지회, 예천군지적장애인자립지원센터 | H18: 민간경상사업보조 | I18: 단체별 교육 희망 장애인 70여명 대상 장애인 유형별 특색에 맞는 맞춤형 평생교육 프로그램 운영 | J18: =K18+N18 -> 20,000 | K18: 20,000 | L18: 0 | M18: 20,000 | N18: 0 | O18: 20,000 | P18: 20,000
A19: 총무과 | B19: 보조 | C19: 공모제외 | D19: 유형2 | E19: 우수정보화마을 청년지도자 양성사업 | F19: 국도비내시 | G19: 금당실정보화마을 운영위원장 | H19: 민간단체법정운영비보조 | I19: 우수정보화마을 청년지도자 인건비 등 21,220천원 * 1인 | J19: =K19+N19 -> 21,220 | K19: 19,220 | M19: 19,220 | N19: 2,000 | O19: =K19 -> 19,220 | P19: 19,220
A20: 새마을경제과 소계 | E20: =SUBTOTAL(103,E21:E24)&"건" -> 4건 | J20: =SUBTOTAL(9,J21:J24) -> 873,700 | K20: =SUBTOTAL(9,K21:K24) -> 492,000 | L20: 200,000 | M20: 292,000 | N20: 381,700 | O20: 292,000 | P20: 285,000
A21: 새마을경제과 | B21: 자체 | C21: 공모제외 | D21: 유형4 | E21: 바르게살기운동 국민화합전진대회 지원 | F21: 예천군바르게살기운동 조직육성 및 지원조례 제3조 | G21: 바르게살기운동예천군협의회 | H21: 민간행사사업보조 | I21: 경상북도-전라북도 영.호남 화합 전진대회 32,000,000원 * 1식 | J21: =K21+N21 -> 35,700 | K21: 32,000 | L21: 0 | M21: =K21-L21 -> 32,000 | N21: 3,700 | O21: =K21 -> 32,000 | P21: 25,000
A22: 새마을경제과 | B22: 자체 | C22: 공모대상 | D22: 공란 | E22: 소상공인 경영안정 지원 | F22: 소상공인지원에 관한 조례 제3조 | G22: 공모대상 | H22: 민간자본사업보조 | I22: 사업장 시설개선 20개소 | J22: =K22+N22 -> 700,000 | K22: 350,000 | L22: 200,000 | M22: =K22-L22 -> 150,000 | N22: 350,000 | O22: 150,000 | P22: 150,000
A23: 새마을경제과 | B23: 자체 | C23: 공모제외 | D23: 유형4 | E23: 도시가스 미공급지역 지원사업 | F23: 도시가스사업법 제3조 및 일반도시가스사업 허가기준 및 처리요령 개정고시(경상북도 고시 제2010-598,2010.12.27.)제3조 | G23: ㈜대성청정에너지 | H23: 민간자본사업보조 | I23: 동본리 2개 지구, 공급관 200m 매설 | J23: =K23+N23 -> 38,000 | K23: 30,000 | L23: 0 | M23: =K23-L23 -> 30,000 | N23: 8,000 | O23: =K23 -> 30,000 | P23: 30,000
A24: 새마을경제과 | B24: 보조 | C24: 공모제외 | D24: 유형2 | E24: 경북형 대학일자리센터 운영지원 | F24: 국도비내시 | G24: 경북도립대학교 | H24: 민간경상사업보조 | I24: 경북도립대학교 내에 일자리센터 사업운영 지원 | J24: =K24+N24 -> 100,000 | K24: 80,000 | L24: 0 | M24: 80,000 | N24: 20,000 | O24: 80,000 | P24: 80,000
A25: 종합민원과 소계 | E25: =SUBTOTAL(103,E26)&"건" -> 1건 | J25: =SUBTOTAL(9,J26) -> 15,000 | K25: 15,000 | L25: 0 | M25: 15,000 | N25: 0 | O25: 15,000 | P25: 0
A26: 종합민원과 | B26: 자체 | C26: 공모대상 | E26: 미용 아카데미 운영 | F26: 예천군 위생업소 지원에 관한 조례 제3조 | G26: 공모대상 | H26: 민간경상사업보조 | I26: 미용 아카데미 운영 * 1식 | J26: =K26+N26 -> 15,000 | K26: 15,000 | M26: =K26-L26 -> 15,000 | N26: 0 | O26: =M26 -> 15,000 | P26: 0
A27: 문화관광과 소계 | E27: =SUBTOTAL(103,E28:E47)&"건" -> 20건 | J27: =SUBTOTAL(9,J28:J47) -> 1,262,007 | K27: =SUBTOTAL(9,K28:K47) -> 1,166,607 | L27: 170,690 | M27: 995,917 | N27: 95,400 | O27: 965,917 | P27: 886,517
A28: 문화관광과 | B28: 자체 | C28: 공모제외 | D28: 유형4 | E28: 한국예총예천지회 활성화 사업 | F28: 예천군 문화 · 관광 진흥 및 지원에 관한조례 제4조 | G28: (사)한국예총예천지회 | H28: 민간경상사업보조 | I28: 예총 활성화사업 1식 | J28: =K28+N28 -> 25,000 | K28: 25,000 | L28: 20,000 | M28: =K28-L28 -> 5,000 | N28: 0 | O28: 5,000 | P28: 5,000
A29: 문화관광과 | B29: 자체 | C29: 공모제외 | D29: 유형4 | E29: 정간공 약포 정탁선생 탄신 493주년 기념사업 지원 | F29: 예천군 문화 · 관광 진흥 및 지원에 관한조례 제4조 | G29: 정간공약포정(탁)선생기념사업회 | H29: 민간경상사업보조 | I29: 기념사업 1식 | J29: =K29+N29 -> 50,000 | K29: 50,000 | L29: 0 | M29: =K29-L29 -> 50,000 | N29: 0 | O29: 50,000 | P29: 30,000
A30: 문화관광과 | B30: 자체 | C30: 공모제외 | D30: 유형4 | E30: 한내 책자 발간 지원 | F30: 예천군 문화 · 관광 진흥 및 지원에 관한조례 제4조 | G30: (사)민족예술단체총연합예천지부 (한내글모임) | H30: 민간경상사업보조 | I30: 5,000원 * 1,000부 | J30: =K30+N30 -> 5,000 | K30: 5,000 | L30: 2,000 | M30: =K30-L30 -> 3,000 | N30: 0 | O30: 3,000 | P30: 1,000
A31: 문화관광과 | B31: 자체 | C31: 공모대상 | E31: 삼강주막 상설공연장 운영 | F31: 예천군 문화 · 관광 진흥 및 지원에 관한조례 제4조 | G31: 공모대상 | H31: 민간행사사업보조 | I31: 상설공연 1식 | J31: =K31+N31 -> 50,000 | K31: 50,000 | L31: 0 | M31: =K31-L31 -> 50,000 | N31: 0 | O31: 50,000 | P31: 50,000
A32: 문화관광과 | B32: 자체 | C32: 공모제외 | D32: 유형4 | E32: 제27회 예천아리랑제 지원 | F32: 예천군 문화 · 관광 진흥 및 지원에 관한조례 제4조 | G32: (사)민족예술단체총연합예천지부 | H32: 민간행사사업보조 | I32: 예천아리랑제 (풍물굿, 도남백일장 등) 개최 | J32: =K32+N32 -> 20,000 | K32: 20,000 | L32: 15,000 | M32: =K32-L32 -> 5,000 | N32: 0 | O32: 5,000 | P32: 0
A33: 문화관광과 | B33: 자체 | C33: 공모제외 | D33: 유형4 | E33: 예천유학사 책자 발간 | F33: 예천군 문화 · 관광 진흥 및 지원에 관한조례 제4조 | G33: 예천문화원 | H33: 민간경상사업보조 | I33: 20,000원 * 300부 | J33: =K33+N33 -> 6,000 | K33: 6,000 | L33: 0 | M33: =K33-L33 -> 6,000 | N33: 0 | O33: =M33-N33 -> 6,000 | P33: 6,000
A34: 문화관광과 | B34: 자체 | C34: 공모제외 | D34: 유형4 | E34: 예천의효열 책자 발간 | F34: 예천군 문화 · 관광 진흥 및 지원에 관한조례 제4조 | G34: 예천문화원 | H34: 민간경상사업보조 | I34: 20,000원 * 200부 | J34: =K34+N34 -> 4,000 | K34: 4,000 | L34: 0 | M34: =K34-L34 -> 4,000 | N34: 0 | O34: 4,000 | P34: 0
A35: 문화관광과 | B35: 자체 | C35: 공모제외 | D35: 유형4 | E35: 예천 지명유래 책자 발간 | F35: 예천군 문화 · 관광 진흥 및 지원에 관한조례 제4조 | G35: 예천문화원 | H35: 민간경상사업보조 | I35: 22,000원 * 200부 | J35: 4,400 | K35: 4,400 | L35: 0 | M35: 4,400 | N35: 0 | O35: 4,400 | P35: 0
A36: 문화관광과 | B36: 자체 | C36: 공모대상 | E36: 우리 민요활동 지원 | F36: 예천군 문화 · 관광 진흥 및 지원에 관한조례 제4조 | G36: 공모대상 | H36: 민간경상사업보조 | I36: 우리민요 활동 지원 2식 | J36: =K36+N36 -> 25,000 | K36: 25,000 | L36: 20,000 | M36: =K36-L36 -> 5,000 | N36: 0 | O36: 5,000 | P36: 0
A37: 문화관광과 | B37: 자체 | C37: 공모제외 | D37: 유형4 | E37: 금당실마을 초가지붕이기 지원 | F37: 예천군 문화 · 관광 진흥 및 지원에 관한조례 제4조 | G37: 금당실전통마을보존회 | H37: 민간자본자업보조 | I37: 초가 지붕 26동 이엉 이기 | J37: =K37+N37 -> 130,000 | K37: 78,000 | L37: 0 | M37: =K37-L37 -> 78,000 | N37: 52,000 | O37: 78,000 | P37: 39,000
A38: 문화관광과 | B38: 자체 | C38: 공모제외 | D38: 유형4 | E38: 어르신 노래자랑 | F38: 예천군 문화 · 관광 진흥 및 지원에 관한조례 제4조 | G38: (사)한국연예예술인협회 예천지부 | H38: 민간행사사업보조 | I38: 어르신 노래자랑 1식 | J38: =K38+N38 -> 10,000 | K38: 10,000 | L38: 0 | M38: =K38-L38 -> 10,000 | N38: 0 | O38: 10,000 | P38: 10,000
A39: 문화관광과 | B39: 보조 | C39: 공모제외 | D39: 유형2 | E39: 예천문화원 지역주도형 청년일자리 지원 | F39: 국도비내시 | G39: 예천문화원 | H39: 민간경상사업보조 | I39: 청년 일자리 제공 2명 | J39: =K39+N39 -> 36,407 | K39: 36,407 | L39: 13,690 | M39: =K39-L39 -> 22,717 | N39: 0 | O39: 22,717 | P39: 22,717
A40: 문화관광과 | B40: 보조 | C40: 공모제외 | D40: 유형2 | E40: 삼강주막 나루터축제 | F40: 국도비내시 | G40: 세계유교문화재단 | H40: 민간행사사업보조 | I40: 도지정축제선정으로 사업비 지원 | J40: 110,000 | K40: 110,000 | L40: 100,000 | M40: 10,000 | N40: 0 | O40: 10,000 | P40: 10,000
A41: 문화관광과 | B41: 보조 | C41: 공모제외 | D41: 유형2 | E41: 대표축제 얼라이언스 프로그램 운영 | F41: 국도비내시 | G41: 경북관광개발공사 | H41: 민간경상사업보조 | I41: 도내23개시군 지역축제 상호방문 | J41: 90,000 | K41: 90,000 | L41: 0 | M41: 90,000 | N41: 0 | O41: 90,000 | P41: 90,000
A42: 문화관광과 | B42: 보조 | C42: 공모제외 | D42: 유형2 | E42: 예천 용문사 대장전 응진전 보수 | F42: 국도비내시 | G42: 용문사 | H42: 민간자본사업보조 | I42: 용문사 대장전 응진전 보수 | J42: 100,000 | K42: 100,000 | L42: 0 | M42: 100,000 | N42: 0 | O42: 100,000 | P42: 100,000
A43: 문화관광과 | B43: 보조 | C43: 공모제외 | D43: 유형2 | E43: 예천 용문사 영산회괘불탱 보호각 건립 설계비 | F43: 국도비내시 | G43: 용문사 | H43: 민간자본사업보조 | I43: 용문사 영산회괘불탱 보호각 건립 설계비 | J43: 100,000 | K43: 100,000 | L43: 0 | M43: 100,000 | N43: 0 | O43: 100,000 | P43: 100,000
A44: 문화관광과 | B44: 보조 | C44: 공모제외 | D44: 유형2 | E44: 예천 청룡사 삼성각 보수 및 축대정비 | F44: 국도비내시 | G44: 청룡사 | H44: 민간자본사업보조 | I44: 청룡사 삼성각 보수 및 축대정비 | J44: 216,800 | K44: 173,400 | L44: 0 | M44: 173,400 | N44: 43,400 | O44: 173,400 | P44: 173,400
A45: 문화관광과 | B45: 보조 | C45: 공모제외 | D45: 유형2 | E45: 단샘글씨겨루기대회지원 사업 | F45: 국도비내시 | G45: (사)초정서예연구원 | H45: 민간경상사업보조 | I45: 제6회 담샘글씨겨루기 지원 | J45: =K45+N45 -> 70,000 | K45: 70,000 | L45: 0 | M45: =K45-L45 -> 70,000 | N45: 0 | O45: =K45 -> 70,000 | P45: 70,000
A46: 문화관광과 | B46: 보조 | C46: 공모제외 | D46: 유형2 | E46: 경북선비아카데미지원 | F46: 국도비내시 | G46: 예천문화연구회 | H46: 민간경상사업보조 | I46: 선비정신 및 충효사상 교육 | J46: 9,400 | K46: 9,400 | L46: 0 | M46: 9,400 | N46: 0 | O46: 9,400 | P46: 9,400
A47: 문화관광과 | B47: 자체 | C47: 공모대상 | E47: 2019 예천국제스마트폰영화제 | F47: 예천군 문화 · 관광 진흥 및 지원에 관한조례 제4조 | G47: 공모대상 | H47: 민간경상사업보조 | I47: 2019년 예천국제스마트폰영화제 개최 | J47: 200,000 | K47: 200,000 | L47: 0 | M47: 200,000 | O47: 170,000 | P47: 170,000
A48: 환경관리과 소계 | E48: =SUBTOTAL(103,E49:E49)&"건" -> 1건 | J48: =SUBTOTAL(9,J49:J49) -> 665,000 | K48: 399,000 | L48: 198,000 | M48: 201,000 | N48: 266,000 | O48: 201,000 | P48: 201,000
A49: 환경관리과 | B49: 보조 | C49: 공모대상 | E49: 야생동물 피해예방시설 설치 지원사업 | F49: 국도비내시 | G49: 공모대상 | H49: 민간자본사업보조 | I49: 경정 399,000,000원 * 1식 | J49: =K49+N49 -> 665,000 | K49: 399,000 | L49: 198,000 | M49: =K49-L49 -> 201,000 | N49: 266,000 | O49: 201,000 | P49: 201,000
A50: 농정과 소계 | E50: =SUBTOTAL(103,E51:E66)&"건" -> 16건 | J50: =SUBTOTAL(9,J51:J66) -> 5,187,907 | K50: =SUBTOTAL(9,K51:K66) -> 2,810,907 | L50: 670,000 | M50: 2,140,907 | N50: 2,377,000 | O50: 2,140,907 | P50: 1,001,907
A51: 농정과 | B51: 보조 | C51: 공모대상 | E51: 결혼이민자농가 소득증진 지원사업 | F51: 국도비내시 | G51: 결혼이민자농가 | H51: 민간자본사업보조 | I51: 10,000,000원 * 8명 * 80% | J51: =K51+N51 -> 80,000 | K51: 64,000 | L51: 24,000 | M51: =K51-L51 -> 40,000 | N51: 16,000 | O51: 40,000 | P51: 40,000
A52: 농정과 | B52: 자체 | C52: 공모대상 | E52: 곡물건조기(대형) 지원 | F52: 예천군농어업육성및 지원에관한조례제7조 | G52: 관내 농업인 | H52: 민간자본사업보조 | I52: 10,000,000원 * 30대 * 50% | J52: =K52+N52 -> 300,000 | K52: 150,000 | M52: =K52-L52 -> 150,000 | N52: 150,000 | O52: =K52 -> 150,000 | P52: 100,000
A53: 농정과 | B53: 보조 | C53: 공모제외 | D53: 유형4 | E53: 신선농산물 수출 물류비 지원 | F53: 국도비내시 | G53: 신선농산물 수출업체 및 농가 | H53: 민간경상사업보조 | I53: 116,000,000원 * 1식 | J53: =K53+N53 -> 116,000 | K53: 116,000 | L53: 96,000 | M53: =K53-L53 -> 20,000 | O53: 20,000 | P53: 20,000
A54: 농정과 | B54: 자체 | C54: 공모대상 | E54: 농산물 해외수출 홍보지원 | F54: 예천군농어업육성및 지원에관한조례제7조 | G54: 해외홍보행사 가능업체 | H54: 민간경상사업보조 | I54: 25,000,000원 * 3회 | J54: =K54+N54 -> 75,000 | K54: 75,000 | L54: 50,000 | M54: =K54-L54 -> 25,000 | O54: 25,000 | P54: 25,000
A55: 농정과 | B55: 자체 | C55: 공모대상 | E55: 수출단지 지게차 구입 지원 | F55: 예천군농어업육성및 지원에관한조례제7조 | G55: 단호박 수출단지 | H55: 민간자본사업보조 | I55: 30,000,000원 * 1대 * 50% | J55: =K55+N55 -> 30,000 | K55: 15,000 | L55: 0 | M55: =K55-L55 -> 15,000 | N55: 15,000 | O55: 15,000 | P55: 15,000
A56: 농정과 | B56: 자체 | C56: 공모대상 | E56: 스틱꿀 제조기 지원 | F56: 예천군농어업육성및 지원에관한조례제7조 | G56: 벌꿀생산작목반 | H56: 민간자본사업보조 | I56: 18,000,000원 * 1대 * 50% | J56: =K56+N56 -> 18,000 | K56: 9,000 | L56: 0 | M56: =K56-L56 -> 9,000 | N56: 9,000 | O56: 9,000 | P56: 0
A57: 농정과 | B57: 자체 | C57: 공모대상 | E57: 우수농특산물 포장재 개선 지원 | F57: 예천군농어업육성및 지원에관한조례제7조 | G57: 관내 농업인 | H57: 민간자본사업보조 | I57: 5,000,000원 * 480개소 * 50% | J57: =K57+N57 -> 2,400,000 | K57: 1,200,000 | L57: 200,000 | M57: =K57-L57 -> 1,000,000 | N57: 1,200,000 | O57: 1,000,000 | P57: 130,000
A58: 농정과 | B58: 자체 | C58: 공모대상 | E58: 농업6차산업 활성화 대책 지원사업 | F58: 예천군농어업육성및 지원에관한조례제7조 | G58: 관내 농업법인 | H58: 민간경상사업보조 | I58: 3,000,000원 * 15개소 * 90% | J58: =K58+N58 -> 45,000 | K58: 40,500 | L58: 0 | M58: 40,500 | N58: 4,500 | O58: 40,500 | P58: 40,500
A59: 농정과 | B59: 자체 | C59: 공모대상 | E59: 청년창업형 후계자 지원 | F59: 농업농촌 및 식품산업 기본법,농어업경영체 육성 및 지원에 관한 법률 | G59: 만19세 ~ 만40세이하 청년농업인, 후계 농업인 | H59: 민간경상사업보조 | I59: 3,600,000원 * 5명 * 100% | J59: =K59+N59 -> 18,000 | K59: 18,000 | L59: 0 | M59: =K59-L59 -> 18,000 | O59: =K59 -> 18,000 | P59: 18,000
A60: 농정과 | B60: 보조 | C60: 공모대상 | E60: 아로니아 과원정비지원 | F60: 국도비내시 | G60: 아로니아 재배 농업인 | H60: 민간경상사업보조 | I60: 38,307,000원 * 1식 | J60: =K60+N60 -> 38,307 | K60: 38,307 | L60: 0 | M60: =K60-L60 -> 38,307 | N60: 0 | O60: =K60 -> 38,307 | P60: 38,307
A61: 농정과 | B61: 자체 | C61: 공모대상 | E61: 소형 이동식 저온저장고 지원 | F61: 예천군농어업육성및 지원에관한조례제7조 | G61: 원예특용작물 재배 농업인 | H61: 민간자본사업보조 | I61: 6,000,000원 * 220동 * 50% | J61: 1,320,000 | K61: 660,000 | L61: 300,000 | M61: 360,000 | N61: 660,000 | O61: 360,000 | P61: 150,000
A62: 농정과 | B62: 자체 | C62: 공모대상 | E62: 대도시 농특산물 판매장 시설개선 지원 | F62: 예천군농어업육성및 지원에관한조례제7조 | G62: 대도시판매장 운영자 | H62: 민간자본사업보조 | I62: 50,000,000원 * 1식 * 50% | J62: 50,000 | K62: 25,000 | M62: 25,000 | N62: 25,000 | O62: =K62 -> 25,000 | P62: 25,000
A63: 농정과 | B63: 보조 | C63: 공모제외 | D63: 유형2 | E63: 농업계고 졸업생 창업비용 지원 | F63: 국도비내시 | G63: 보문면 독죽골길54 최정희외 4명 | H63: 민간자본사업보조 | I63: 5,000,000원 * 5명 | J63: 25,000 | K63: 25,000 | L63: 0 | M63: 25,000 | O63: 25,000 | P63: 25,000
A64: 농정과 | B64: 보조 | C64: 공모대상 | E64: 맞춤형농기계 지원(보조) | F64: 국도비내시 | G64: 관내 농업인 | H64: 민간자본사업보조 | I64: 2,000,000원 * 260대 * 50% | J64: 520,000 | K64: 260,000 | L64: 0 | M64: 260,000 | N64: 260,000 | O64: 260,000 | P64: 260,000
A65: 농정과 | B65: 보조 | C65: 공모제외 | D65: 유형2 | E65: 용궁순대축제 지원 | F65: 국도비내시 | G65: 용궁순대축제추진위원회 | H65: 민간행사사업보조 | I65: 77,600,000원 * 1식 | J65: 77,600 | K65: 77,600 | L65: 0 | M65: 77,600 | O65: 77,600 | P65: 77,600
A66: 농정과 | B66: 보조 | C66: 공모제외 | D66: 유형4 | E66: 농식품가공산업육성사업 지원 | F66: 국도비내시 | G66: 농업회사법인㈜착한농부 | H66: 민간자본보조 | I66: 75,000,000원 * 1식 * 50% | J66: =K66+N66 -> 75,000 | K66: 37,500 | L66: 0 | M66: =K66-L66 -> 37,500 | N66: 37,500 | O66: 37,500 | P66: 37,500
A67: 산림축산과 소계 | E67: =SUBTOTAL(103,E68:E71)&"건" -> 4건 | J67: =SUBTOTAL(9,J68:J71) -> 959,600 | K67: =SUBTOTAL(9,K68:K71) -> 484,760 | L67: 225,000 | M67: 259,760 | O67: 259,760 | P67: 259,760
A68: 산림축산과 | B68: 자체 | C68: 공모대상 | E68: 임산물 소득지원 | F68: 예천군농어업육성및 지원에관한조례제7조 | G68: 예천군 관내 임가 | H68: 민간자본사업보조 | I68: 포장재 및 표고목(배지)구입 노후화 시설 지원 | J68: =K68+N68 -> 700,000 | K68: 350,000 | L68: 150,000 | M68: =K68-L68 -> 200,000 | N68: 350,000 | O68: 200,000 | P68: 200,000
A69: 산림축산과 | B69: 자체 | C69: 공모대상 | E69: 축산분뇨 처리용 톱밥 지원 | F69: 예천군농어업육성및 지원에관한조례제7조 | G69: 예천군 관내 축산농가 | H69: 민간자본사업보조 | I69: 3,000원 * 70,000포 * 50% | J69: 210,000 | K69: 105,000 | L69: 75,000 | M69: 30,000 | N69: 105,000 | O69: 30,000 | P69: 30,000
A70: 산림축산과 | B70: 보조 | C70: 공모대상 | E70: CCTV 설치 지원 | F70: 국도비내시 | G70: 관내 농업인 | H70: 민간자본사업보조 | I70: 26,600,000원 * 1식 * 60% | J70: 26,600 | K70: 15,960 | L70: 0 | M70: =K70-L70 -> 15,960 | N70: 10,640 | O70: =K70 -> 15,960 | P70: =O70 -> 15,960
A71: 산림축산과 | B71: 보조 | C71: 공모대상 | E71: 방역시설 설치 지원 | F71: 국도비내시 | G71: 관내 농업인 | H71: 민간자본사업보조 | I71: 23,000,000원 * 1식 * 60% | J71: 23,000 | K71: 13,800 | L71: 0 | M71: 13,800 | N71: 9,200 | O71: =K71 -> 13,800 | P71: =O71 -> 13,800
A72: 건설교통과 소계 | E72: =SUBTOTAL(103,E73)&"건" -> 1건 | J72: =SUBTOTAL(9,J73) -> 55,600 | K72: =SUBTOTAL(9,K73) -> 38,920 | L72: 0 | M72: 38,920 | N72: 16,680 | O72: 38,920 | P72: 38,920 | Q72: =SUBTOTAL(9,Q73) -> 0
A73: 건설교통과 | B73: 자체 | C73: 공모제외 | D73: 유형4 | E73: 택시운행정보관리시스템 일체형 단말기 교체 | F73: 예천군 여객자동차 운수 사업 재정지원에 관한 조례 제3조1항에 근거 | G73: 개인택시 외 법인택시 3개업체 | H73: 민간자본사업보조 | I73: 400,000원/대 * 139대 * 70% | J73: 55,600 | K73: 38,920 | M73: =K73-L73 -> 38,920 | N73: 16,680 | O73: =K73 -> 38,920 | P73: 38,920
A74: 건축과 소계 | E74: =SUBTOTAL(103,E75)&"건" -> 1건 | J74: =SUBTOTAL(9,J75) -> 40,000 | K74: =SUBTOTAL(9,K75) -> 40,000 | L74: 0 | M74: 40,000 | N74: 0 | O74: 40,000 | P74: 40,000
A75: 건축과 | B75: 자체 | C75: 공모대상 | E75: 한옥건립 지원사업 | F75: 한옥 등 건축자산의 진흥에 관한 법률 제24조제1항 | G75: 한옥건립지원사업 신청자 | H75: 민간자본사업보조 | I75: 한옥 신축 : 20,000천원 한옥 수선 : 20,000천원 | J75: =K75+N75 -> 40,000 | K75: 40,000 | L75: 0 | M75: =K75-L75 -> 40,000 | N75: 0 | O75: =K75 -> 40,000 | P75: 40,000
A76: 안전재난과 소계 | E76: =SUBTOTAL(103,E77)&"건" -> 1건 | J76: =SUBTOTAL(9,J77) -> 90,000 | K76: 90,000 | L76: 0 | M76: 90,000 | N76: 0 | O76: 90,000 | P76: 90,000
A77: 안전재난과 | B77: 자체 | C77: 공모제외 | D77: 유형4 | E77: 예비군 차량 이동로 및 주차장 포장 | F77: 예비군 시행령 제32조 | G77: 제3260부대 2대대장 | H77: 예비군육성지원자본보조 | I77: 사업 내용 : 콘크리트 포장 1식 사 업 량 : L=200m / A=3,300㎡ 사 업 비 : 90,000 | J77: =K77+N77 -> 90,000 | K77: 90,000 | L77: 0 | M77: =K77-L77 -> 90,000 | N77: 0 | O77: =K77 -> 90,000 | P77: 90,000
A78: 문화체육사업소 소계 | E78: =SUBTOTAL(103,E79:E92)&"건" -> 14건 | J78: =SUBTOTAL(9,J79:J92) -> 15,572,270 | K78: 15,572,270 | L78: 221,900 | M78: 15,350,370 | N78: 0 | O78: 15,350,370 | P78: 15,350,270
A79: 체육사업소 | B79: 보조 | C79: 공모제외 | D79: 유형4 | E79: 한국중·고양궁연맹 전국양궁대회 개최 및 한·일 친선 교류전 개최 경비 지원 | F79: 국도비내시 | G79: 한국중고양궁연맹 | H79: 민간행사사업보조 | I79: 110,000,000원 * 1식 | J79: =K79+N79 -> 110,000 | K79: 110,000 | L79: 0 | M79: =K79-L79 -> 110,000 | N79: 0 | O79: =K79 -> 110,000 | P79: 110,000
A80: 체육사업소 | B80: 자체 | C80: 공모제외 | D80: 유형4 | E80: 우수선수 육성 지도자 지원 | F80: 국민체육진흥법 제14조 제1항 | G80: 예천군체육회 | H80: 민간경상사업보조 | I80: 지도자 9명 * 500천원 * 12월 (양궁 6명, 육상 3명) | J80: 54,000 | K80: 54,000 | L80: 52,000 | M80: 2,000 | N80: 0 | O80: 2,000 | P80: 2,000
A81: 체육사업소 | B81: 자체 | C81: 공모제외 | D81: 유형5 | E81: 체육회 차장 퇴직금 | F81: 국민체육진흥법 제18조 제3항 | G81: 예천군체육회 | H81: 민간단체법정운영비보조 | I81: 1,500천원 * 2명 | J81: 3,000 | K81: 3,000 | L81: 2,000 | M81: 1,000 | N81: 0 | O81: 1,000 | P81: 1,000
A82: 체육사업소 | B82: 자체 | C82: 공모제외 | D82: 유형4 | E82: 도민체전 대비 우수선수 육성 지원 | F82: 국민체육진흥법 제14조 제1항 | G82: 예천군체육회 | H82: 민간경상사업보조 | I82: 1,000천원 * 20명 | J82: 20,000 | K82: 20,000 | L82: 0 | M82: 20,000 | N82: 0 | O82: 20,000 | P82: 20,000
A83: 체육사업소 | B83: 보조 | C83: 공모제외 | D83: 유형4 | E83: 생활체육지도자 장기근속수당 지원 | F83: 국도비내시 | G83: 예천군체육회 | H83: 민간경상사업보조 | I83: 생활체육지도자에 대한 장기근속 수당지급으로 직무만족도 향상 추구 - 200,000원 * 1명 * 2개월 - 150,000원 * 1명 * 10개월 - 150,000원 * 1명 * 12개월 - 150,000원 * 1명 * 2개월 - 130,000원 * 1명 * 10개월 - 130,000원 * 1명 * 12개월 - 100,000원 * 1명 * 12개월 - 70,000원 * 1명 * 3개월 - 50,000원 * 1명 * 9개월 - 50,000원 * 1명 * 12개월 - 50,000원 * 1명 * 12개월 - 50,000원 * 1명 * 7개월 | J83: 10,270 | K83: 10,270 | L83: 7,900 | M83: 2,370 | O83: 2,370 | P83: 2,270
A84: 체육사업소 | B84: 자체 | C84: 공모제외 | D84: 유형4 | E84: 예천파크골프 활성화 사업 지원 | F84: 지방재정법 제32조의2 제4항 4호 | G84: 예천군파크골프협회 | H84: 민간경상사업보조 | I84: 예천파크골프활성화 사업지원을 통한 파크골프의 저변확대 및 군민화합과 건전한 정신을 함양 추구 대회개최 및 파크골프장 관리에 있어 비용증가로 인한 추가 증액 | J84: 15,000 | K84: 15,000 | L84: 10,000 | M84: 5,000 | N84: 0 | O84: 5,000 | P84: 5,000
A85: 체육사업소 | B85: 자체 | C85: 공모제외 | D85: 유형4 | E85: 경북 종별육상선수권대회 개최 지원 | F85: 지방재정법 제32조의2 제4항 4호 | G85: 경상북도육상연맹 | H85: 민간경상사업보조 | I85: 경북 종별육상선수권대회 개최 지원 | J85: 20,000 | K85: 20,000 | L85: 0 | M85: 20,000 | N85: 0 | O85: 20,000 | P85: 20,000
A86: 체육사업소 | B86: 자체 | C86: 공모제외 | D86: 유형4 | E86: 해외 스포츠마케팅 추진(육상) | F86: 지방재정법 제32조의2 제4항 4호 | G86: 예천군육상연맹 | H86: 민간경상사업보조 | I86: 해외 스포츠마케팅 추진(육상) | J86: 20,000 | K86: 20,000 | L86: 0 | M86: 20,000 | N86: 0 | O86: 20,000 | P86: 20,000
A87: 체육사업소 | B87: 자체 | C87: 공모제외 | D87: 유형4 | E87: 전국 육상혼성경기 및 경보경기대회 개최 지원 | F87: 지방재정법 제32조의2 제4항 4호 | G87: 경상북도육상연맹 | H87: 민간경상사업보조 | I87: 전국 육상혼성경기 및 경보경기대회 개최 지원비 | J87: 5,000 | K87: 5,000 | L87: 0 | M87: 5,000 | N87: 0 | O87: 5,000 | P87: 5,000
A88: 체육사업소 | B88: 보조 | C88: 공모제외 | D88: 유형4 | E88: 도 협회장배 축구대회 개최 지원 | F88: 국도비내시 | G88: 예천군축구협회 | H88: 민간행사사업보조 | I88: 도 협회장배 축구대회 개최 지원비 | J88: 25,000 | K88: 25,000 | L88: 0 | M88: 25,000 | N88: 0 | O88: 25,000 | P88: 25,000
A89: 체육사업소 | B89: 보조 | C89: 공모제외 | D89: 유형4 | E89: 춘계 전국중ㆍ고육상대회 개최 지원 | F89: 국도비내시 | G89: 한국중ㆍ고 육상연맹 | H89: 민간행사사업보조 | I89: 춘계 전국중ㆍ고육상대회 개최 지원 | J89: 160,000 | K89: 160,000 | L89: 150,000 | M89: 10,000 | N89: 0 | O89: 10,000 | P89: 10,000
A90: 체육사업소 | B90: 보조 | C90: 공모제외 | D90: 유형4 | E90: 제5회 예천 도효자배 전국중ㆍ고 단축마라톤대회 개최 지원 | F90: 국도비내시 | G90: 한국중ㆍ고 육상연맹 | H90: 민간행사사업보조 | I90: 제5회 예천 도효자배 전국중ㆍ고 단축마라톤대회 개최 지원비 | J90: 80,000 | K90: 80,000 | L90: 0 | M90: 80,000 | N90: 0 | O90: 80,000 | P90: 80,000
A91: 체육사업소 | B91: 자체 | C91: 공모제외 | D91: 유형4 | E91: 축구종합센터 건립 지원 | F91: 지방재정법 제32조의2 제4항 4호 | G91: 대한축구협회 | H91: 민간자본이전 | I91: 축구종합센터 건립 지원 | J91: 15,000,000 | K91: 15,000,000 | L91: 0 | M91: 15,000,000 | N91: 0 | O91: =K91 -> 15,000,000 | P91: =O91 -> 15,000,000
A92: 체육사업소 | B92: 보조 | C92: 공모제외 | D92: 유형4 | E92: 제6회 국무총리기 생활체육 전국시도대항 검도대회 | F92: 국도비내시 | G92: 경상북도검도회 | H92: 민간행사사업보조 | I92: 국무총리기 전국검도대회 개최 지원 | J92: 50,000 | K92: 50,000 | L92: 0 | M92: 50,000 | N92: 0 | O92: 50,000 | P92: 50,000

Sheet 대상자별지내역
A1: 2019년도 제1회 지방보조금 추경편성 심의 대상자내역 별지 조서
L2: (단위 : 천원)
A3: 부서명 | B3: 보 조 사 업 명 | C3: 보 조 사 업 자 | F3: 과목명 | G3: 사 업 내 용 | H3: 계 | I3: 보조금 | J3: 자부담 | K3: 1차(해당부서) | L3: 2차(예산부서) | M3: 3차(위원회)
C4: 주소 | D4: 성명 | E4: 성명
A5: 소계 | B5: =SUBTOTAL(103,B6:B17) -> 5 | H5: =SUBTOTAL(9,H6:H17) -> 25,000 | I5: =SUBTOTAL(9,I6:I17) -> 25,000 | J5: =SUBTOTAL(9,J6:J17) -> 0 | K5: =SUBTOTAL(9,K6:K17) -> 25,000
A6: 농정과 | B6: 농업계고 졸업생 창업비용 지원 | C6: 보문면 독죽골길 | D6: =REPLACE(E6,2,1,"O") -> 최O희 | E6: 최동희 | F6: 민간자본사업보조 | G6: 5,000,000원 * 1명 | H6: 5,000 | I6: 5,000 | J6: 0 | K6: 5,000
A7: 농정과 | B7: 농업계고 졸업생 창업비용 지원 | C7: 예천읍 대심3길 | D7: =REPLACE(E7,2,1,"O") -> 임O석 | E7: 임종석 | F7: 민간자본사업보조 | G7: 5,000,000원 * 1명 | H7: 5,000 | I7: 5,000 | J7: 0 | K7: 5,000
A8: 농정과 | B8: 농업계고 졸업생 창업비용 지원 | C8: 용문면 덕신리 | D8: 임O구 | E8: 임민구 | F8: 민간자본사업보조 | G8: 5,000,000원 * 1명 | H8: 5,000 | I8: 5,000 | J8: 0 | K8: 5,000
A9: 농정과 | B9: 농업계고 졸업생 창업비용 지원 | C9: 예천읍 남본3길 | D9: 윤O영 | E9: 윤보영 | F9: 민간자본사업보조 | G9: 5,000,000원 * 1명 | H9: 5,000 | I9: 5,000 | J9: 0 | K9: 5,000
A10: 농정과 | B10: 농업계고 졸업생 창업비용 지원 | C10: 예천읍 양궁로 83 | D10: 윤O욱 | E10: 윤대욱 | F10: 민간자본사업보조 | G10: 5,000,000원 * 1명 | H10: 5,000 | I10: 5,000 | J10: 0 | K10: 5,000

Sheet Sheet2

Sheet Sheet3
